fUST/lending_fUST_20251010
["ID","MTS","AMOUNT","RATE_DAILY","PERIOD"]
[390544284,1760080241848,-500.0,0.00016438,2]
[390544286,1760080241857,-488.93264309,0.00016438,2]
[390544288,1760080241866,-500.0,0.00016438,2]
[390544290,1760080241876,-500.0,0.00016438,2]
[390544293,1760080241886,-500.0,0.00016438,2]
[390544295,1760080241895,-500.0,0.00016438,2]
[390544296,1760080241904,-500.0,0.00016438,2]
[390544298,1760080241913,-500.0,0.00016438,2]
[390544300,1760080241922,-500.0,0.00016438,2]
[390544302,1760080241933,-1405.83,0.00016438,2]
[390544304,1760080241944,-500.0,0.00016438,2]
[390544306,1760080241953,-501.73644491,0.00016438,2]
[390544308,1760080241962,-3146.69,0.00016438,2]
[390544310,1760080241971,-500.0,0.00016438,2]
[390544312,1760080241981,-500.0,0.00016438,2]
[390544314,1760080241991,-500.0,0.00016438,2]
[390544316,1760080242000,-501.03965201,0.00016438,2]
[390544334,1760080242149,-1222.66,0.00016438,2]
[390544336,1760080242159,-1001.84,0.00016438,2]
[390544338,1760080242168,-500.0,0.00016438,2]
[390544340,1760080242178,-500.0,0.00016438,2]
[390544342,1760080242188,-500.0,0.00016438,2]
[390544344,1760080242198,-500.0,0.00016438,2]
[390544346,1760080242206,-500.0,0.00016438,2]
[390544348,1760080242215,-500.0,0.00016438,2]
[390544350,1760080242225,-500.0,0.00016438,2]
[390544352,1760080242234,-500.0,0.00016438,2]
[390544354,1760080242243,-1093.82,0.00016438,2]
[390544356,1760080242253,-500.0,0.00016438,2]
[390544358,1760080242262,-741.44,0.00016438,2]
[390544360,1760080242271,-500.0,0.00016438,2]
[390544362,1760080242279,-500.0,0.00016438,2]
[390544364,1760080242290,-500.73956541,0.00016438,2]
[390544366,1760080242299,-500.0,0.00016438,2]
[390544368,1760080242308,-500.0,0.00016438,2]
[390544370,1760080242317,-500.0,0.00016438,2]
[390544372,1760080242326,-500.0,0.00016438,2]
[390544374,1760080242335,-500.0,0.00016438,2]
[390544376,1760080242343,-722.92,0.00016438,2]
[390544378,1760080242352,-742.89,0.00016438,2]
[390544380,1760080242361,-500.0,0.00016438,2]
[390544382,1760080242370,-620.65,0.00016438,2]
[390544384,1760080242380,-500.0,0.00016438,2]
[390544386,1760080242390,-500.0,0.00016438,2]
[390544388,1760080242399,-838.24,0.00016438,2]
[390544390,1760080242408,-500.0,0.00016438,2]
[390544392,1760080242417,-500.0,0.00016438,2]
[390544394,1760080242426,-500.0,0.00016438,2]
[390544396,1760080242436,-1177.09,0.00016438,2]
[390544398,1760080242445,-500.0,0.00016438,2]
[390544400,1760080242454,-3902.7,0.00016438,2]
[390544402,1760080242464,-500.0,0.00016438,2]
[390544404,1760080242473,-500.0,0.00016438,2]
[390544406,1760080242487,-663.03,0.00016438,2]
[390544407,1760080242495,-500.0,0.00016438,2]
[390544409,1760080242505,-500.0,0.00016438,2]
[390544411,1760080242514,-509.80328601,0.00016438,2]
[390544413,1760080242523,-501.93253675,0.00016438,2]
[390544416,1760080242531,-1065.11,0.00016438,2]
[390544418,1760080242540,-500.0,0.00016438,2]
[390544421,1760080242550,-480.76564044,0.00016438,2]
[390544423,1760080242559,-581.02,0.00016438,2]
[390544425,1760080242569,-300.0,0.00016438,2]
[390544427,1760080242578,-500.0,0.00016438,2]
[390544429,1760080242587,-501.05543227,0.00016438,2]
[390544431,1760080242596,-500.0,0.00016438,2]
[390544434,1760080242606,-500.0,0.00016438,2]
[390544435,1760080242615,-500.0,0.00016438,2]
[390544437,1760080242623,-500.0,0.00016438,2]
[390544440,1760080242633,-2908.2,0.00016438,2]
[390544443,1760080242642,-500.0,0.00016438,2]
[390544445,1760080242651,-500.0,0.00016438,2]
[390544447,1760080242660,-500.0,0.00016438,2]
[390544449,1760080242669,-500.0,0.00016438,2]
[390544451,1760080242678,-500.0,0.00016438,2]
[390544453,1760080242687,-500.0,0.00016438,2]
[390544455,1760080242697,-500.0,0.00016438,2]
[390544457,1760080242707,-500.0,0.00016438,2]
[390544459,1760080242716,-500.0,0.00016438,2]
[390544461,1760080242725,-500.0,0.00016438,2]
[390544463,1760080242735,-2815.98,0.00016438,2]
[390544465,1760080242745,-4287.67,0.00016438,2]
[390544467,1760080242754,-2815.98,0.00016438,2]
[390544469,1760080242763,-2815.98,0.00016438,2]
[390544470,1760080242772,-2815.98,0.00016438,2]
[390544473,1760080242782,-2815.98,0.00016438,2]
[390544474,1760080242791,-2815.98,0.00016438,2]
[390544476,1760080242800,-502.17725709,0.00016438,2]
[390544478,1760080242809,-2815.98,0.00016438,2]
[390544480,1760080242819,-2815.98,0.00016438,2]
[390544482,1760080242829,-500.0,0.00016438,2]
[390544484,1760080242839,-2815.98,0.00016438,2]
[390544487,1760080242848,-2815.98,0.00016438,2]
[390544488,1760080242857,-500.0,0.00016438,2]
[390544490,1760080242867,-2815.98,0.00016438,2]
[390544493,1760080242877,-500.0,0.00016438,2]
[390544495,1760080242886,-5159.42,0.00016438,2]
[390544497,1760080242896,-500.0,0.00016438,2]
[390544499,1760080242905,-500.0,0.00016438,2]
[390544501,1760080242914,-500.82750566,0.00016438,2]
[390544502,1760080242923,-500.0,0.00016438,2]
[390544504,1760080242933,-1082.4,0.00016438,2]
[390544506,1760080242942,-500.0,0.00016438,2]
[390544508,1760080242951,-500.0,0.00016438,2]
[390544510,1760080242960,-500.0,0.00016438,2]
[390544512,1760080242970,-220.45133857,0.00016438,2]
[390544514,1760080242979,-500.0,0.00016438,2]
[390544516,1760080242988,-500.0,0.00016438,2]
[390544518,1760080242998,-500.0,0.00016438,2]
[390544520,1760080243007,-500.0,0.00016438,2]
[390544522,1760080243017,-1151.16,0.00016438,2]
[390544524,1760080243026,-501.70052436,0.00016438,2]
[390544526,1760080243035,-500.0,0.00016438,2]
[390544528,1760080243044,-2087.21,0.00016438,2]
[390544530,1760080243053,-500.0,0.00016438,2]
[390544532,1760080243063,-500.56623133,0.00016438,2]
[390544534,1760080243071,-500.0,0.00016438,2]
[390544536,1760080243080,-500.0,0.00016438,2]
[390544538,1760080243089,-500.0,0.00016438,2]
[390544540,1760080243098,-500.0,0.00016438,2]
[390544542,1760080243107,-1236.4,0.00016438,2]
[390544544,1760080243117,-500.0,0.00016438,2]
[390544546,1760080243126,-514.68683796,0.00016438,2]
[390544548,1760080243135,-969.09,0.00016438,2]
[390544550,1760080243144,-761.97,0.00016438,2]
[390544552,1760080243154,-500.0,0.00016438,2]
[390544554,1760080243163,-749.82,0.00016438,2]
[390544556,1760080243172,-500.0,0.00016438,2]
[390544558,1760080243182,-500.0,0.00016438,2]
[390544560,1760080243191,-500.0,0.00016438,2]
[390544562,1760080243200,-500.0,0.00016438,2]
[390544564,1760080243209,-502.31385421,0.00016438,2]
[390544566,1760080243218,-502.04813381,0.00016438,2]
[390544568,1760080243227,-720.35,0.00016438,2]
[390544570,1760080243236,-500.0,0.00016438,2]
[390544572,1760080243245,-2438.53,0.00016438,2]
[390544574,1760080243255,-500.0,0.00016438,2]
[390544576,1760080243263,-500.0,0.00016438,2]
[390544578,1760080243272,-500.0,0.00016438,2]
[390544580,1760080243282,-500.0,0.00016438,2]
[390544582,1760080243290,-500.0,0.00016438,2]
[390544584,1760080243300,-500.0,0.00016438,2]
[390544586,1760080243309,-500.0,0.00016438,2]
[390544588,1760080243318,-968.88,0.00016438,2]
[390544590,1760080243327,-500.0,0.00016438,2]
[390544592,1760080243337,-1923.9,0.00016438,2]
[390544594,1760080243346,-500.0,0.00016438,2]
[390544596,1760080243355,-818.44,0.00016438,2]
[390544598,1760080243364,-500.0,0.00016438,2]
[390544600,1760080243374,-500.0,0.00016438,2]
[390544602,1760080243383,-661.1,0.00016438,2]
[390544604,1760080243392,-500.0,0.00016438,2]
[390544606,1760080243401,-1294.41,0.00016438,2]
[390544608,1760080243411,-500.0,0.00016438,2]
[390544610,1760080243420,-500.0,0.00016438,2]
[390544612,1760080243429,-500.0,0.00016438,2]
[390544614,1760080243439,-500.0,0.00016438,2]
[390544616,1760080243447,-500.0,0.00016438,2]
[390544617,1760080243456,-500.0,0.00016438,2]
[390544620,1760080243466,-500.0,0.00016438,2]
[390544621,1760080243476,-500.0,0.00016438,2]
[390544623,1760080243490,-500.0,0.00016438,2]
[390544625,1760080243499,-500.0,0.00016438,2]
[390544628,1760080243509,-661.5,0.00016438,2]
[390544629,1760080243519,-598.14865491,0.00016438,2]
[390544632,1760080243528,-500.0,0.00016438,2]
[390544633,1760080243537,-500.0,0.00016438,2]
[390544635,1760080243546,-500.89667396,0.00016438,2]
[390544637,1760080243556,-500.0,0.00016438,2]
[390544639,1760080243566,-698.81,0.00016438,2]
[390544641,1760080243575,-151.0,0.00016438,2]
[390544643,1760080243584,-500.0,0.00016438,2]
[390544645,1760080243594,-500.0,0.00016438,2]
[390544647,1760080243603,-151.0,0.00016438,2]
[390544649,1760080243612,-500.0,0.00016438,2]
[390544651,1760080243621,-501.90666336,0.00016438,2]
[390544653,1760080243630,-500.0,0.00016438,2]
[390544655,1760080243639,-500.0,0.00016438,2]
[390544657,1760080243649,-151.42201,0.00016438,2]
[390544659,1760080243659,-501.29728258,0.00016438,2]
[390544661,1760080243668,-500.0,0.00016438,2]
[390544663,1760080243677,-618.51,0.00016438,2]
[390544665,1760080243687,-1004.65,0.00016438,2]
[390544667,1760080243697,-500.0,0.00016438,2]
[390544669,1760080243707,-2816.8,0.00016438,2]
[390544671,1760080243716,-500.0,0.00016438,2]
[390544673,1760080243726,-256.22024761,0.00016438,2]
[390544675,1760080243735,-301.55715187,0.00016466,3]
[390544677,1760080243744,-235.0,0.00016484,2]
[390544679,1760080243754,-235.0,0.00016523,2]
[390544681,1760080243763,-235.0,0.0001656,2]
[390544683,1760080243773,-1384.0,0.00016601,2]
[390544686,1760080243782,-444.25432086,0.00016681,2]
[390544688,1760080243792,-235.0,0.00016707,2]
[390544690,1760080243801,-2815.98,0.00016711,2]
[390544691,1760080243810,-2815.98,0.00016711,2]
[390544694,1760080243820,-2815.98,0.00016711,2]
[390544695,1760080243829,-2815.98,0.00016711,2]
[390544697,1760080243839,-2815.98,0.00016711,2]
[390544699,1760080243850,-2815.98,0.00016711,2]
[390544701,1760080243859,-2815.98,0.00016711,2]
[390544703,1760080243868,-2815.98,0.00016711,2]
[390544705,1760080243878,-560.0,0.00016712,2]
[390544707,1760080243887,-500.0,0.00016712,2]
[390544709,1760080243897,-500.0,0.00016712,2]
[390544711,1760080243908,-500.0,0.00016712,2]
[390544714,1760080243918,-500.0,0.00016712,2]
[390544715,1760080243927,-500.0,0.00016712,2]
[390544717,1760080243937,-500.0,0.00016712,2]
[390544720,1760080243947,-501.21198295,0.00016712,2]
[390544721,1760080243956,-500.0,0.00016712,2]
[390544723,1760080243966,-500.0,0.00016712,2]
[390544725,1760080243976,-500.0,0.00016712,2]
[390544727,1760080243985,-500.0,0.00016712,2]
[390544730,1760080243995,-501.1690776,0.00016712,2]
[390544732,1760080244005,-500.0,0.00016712,2]
[390544733,1760080244016,-500.0,0.00016712,2]
[390544736,1760080244025,-500.0,0.00016712,2]
[390544738,1760080244035,-500.0,0.00016712,2]
[390544739,1760080244044,-500.0,0.00016712,2]
[390544741,1760080244053,-500.0,0.00016712,2]
[390544743,1760080244062,-500.0,0.00016712,2]
[390544745,1760080244072,-500.0,0.00016712,2]
[390544747,1760080244081,-500.0,0.00016712,2]
[390544749,1760080244090,-500.0,0.00016712,2]
[390544751,1760080244099,-500.0,0.00016712,2]
[390544753,1760080244108,-500.0,0.00016712,2]
[390544755,1760080244118,-500.0,0.00016712,2]
[390544757,1760080244127,-500.0,0.00016712,2]
[390544759,1760080244136,-500.0,0.00016712,2]
[390544761,1760080244144,-502.13180974,0.00016712,2]
[390544763,1760080244153,-401.44330821,0.00016712,2]
[390544765,1760080244162,-500.0,0.00016712,2]
[390544767,1760080244172,-500.0,0.00016712,2]
[390544769,1760080244181,-500.0,0.00016712,2]
[390544771,1760080244189,-500.0,0.00016712,2]
[390544773,1760080244198,-500.0,0.00016712,2]
[390544775,1760080244207,-500.0,0.00016712,2]
[390544777,1760080244216,-500.0,0.00016712,2]
[390544779,1760080244225,-500.0,0.00016712,2]
[390544781,1760080244234,-500.0,0.00016712,2]
[390544783,1760080244243,-502.30765809,0.00016712,2]
[390544785,1760080244253,-500.0,0.00016712,2]
[390544787,1760080244262,-500.0,0.00016712,2]
[390544789,1760080244271,-501.10395963,0.00016712,2]
[390544791,1760080244280,-500.0,0.00016712,2]
[390544793,1760080244289,-500.0,0.00016712,2]
[390544795,1760080244298,-500.0,0.00016712,2]
[390544797,1760080244307,-482.27098122,0.00016712,2]
[390544799,1760080244316,-500.0,0.00016712,2]
[390544801,1760080244325,-500.0,0.00016712,2]
[390544803,1760080244334,-500.99212781,0.00016712,2]
[390544805,1760080244343,-500.0,0.00016712,2]
[390544807,1760080244353,-500.0,0.00016712,2]
[390544809,1760080244362,-500.0,0.00016712,2]
[390544811,1760080244371,-500.0,0.00016712,2]
[390544813,1760080244380,-501.39167991,0.00016712,2]
[390544815,1760080244389,-500.0,0.00016712,2]
[390544817,1760080244398,-500.0,0.00016712,2]
[390544819,1760080244407,-500.0,0.00016712,2]
[390544821,1760080244416,-500.0,0.00016712,2]
[390544823,1760080244426,-500.0,0.00016712,2]
[390544825,1760080244435,-606.63815036,0.00016712,2]
[390544827,1760080244444,-1034.39,0.00016712,2]
[390544829,1760080244454,-500.0,0.00016712,2]
[390544831,1760080244463,-500.0,0.00016712,2]
[390544833,1760080244472,-500.0,0.00016712,2]
[390544835,1760080244484,-900.62,0.00016712,2]
[390544837,1760080244492,-500.0,0.00016712,2]
[390544839,1760080244502,-500.0,0.00016712,2]
[390544841,1760080244511,-500.0,0.00016712,2]
[390544843,1760080244520,-500.0,0.00016712,2]
[390544845,1760080244529,-500.0,0.00016712,2]
[390544847,1760080244538,-500.0,0.00016712,2]
[390544849,1760080244548,-500.0,0.00016712,2]
[390544851,1760080244557,-500.0,0.00016712,2]
[390544853,1760080244566,-500.0,0.00016712,2]
[390544855,1760080244575,-500.0,0.00016712,2]
[390544857,1760080244584,-500.0,0.00016712,2]
[390544859,1760080244593,-500.0,0.00016712,2]
[390544861,1760080244602,-500.0,0.00016712,2]
[390544863,1760080244611,-882.71,0.00016712,2]
[390544865,1760080244620,-502.25975422,0.00016712,2]
[390544867,1760080244629,-500.0,0.00016712,2]
[390544869,1760080244638,-500.0,0.00016712,2]
[390544871,1760080244646,-796.28,0.00016712,2]
[390544873,1760080244656,-500.0,0.00016712,2]
[390544875,1760080244665,-500.0,0.00016712,2]
[390544877,1760080244674,-500.0,0.00016712,2]
[390544879,1760080244683,-500.0,0.00016712,2]
[390544880,1760080244692,-500.0,0.00016712,2]
[390544882,1760080244702,-500.0,0.00016712,2]
[390544884,1760080244711,-500.0,0.00016712,2]
[390544886,1760080244719,-500.0,0.00016712,2]
[390544889,1760080244729,-500.0,0.00016712,2]
[390544890,1760080244738,-501.84305985,0.00016712,2]
[390544892,1760080244747,-500.0,0.00016712,2]
[390544894,1760080244756,-500.0,0.00016712,2]
[390544896,1760080244764,-500.0,0.00016712,2]
[390544898,1760080244774,-500.0,0.00016712,2]
[390544900,1760080244783,-500.0,0.00016712,2]
[390544902,1760080244792,-500.0,0.00016712,2]
[390544904,1760080244801,-330.59506078,0.00016712,2]
[390544906,1760080244810,-503.41532337,0.00016712,2]
[390544908,1760080244819,-500.0,0.00016712,2]
[390544910,1760080244828,-502.20049558,0.00016712,2]
[390544912,1760080244837,-500.0,0.00016712,2]
[390544914,1760080244846,-1270.86,0.00016712,2]
[390544916,1760080244856,-463.59171238,0.00016712,2]
[390544918,1760080244864,-500.0,0.00016712,2]
[390544920,1760080244873,-502.14845717,0.00016712,2]
[390544922,1760080244882,-500.0,0.00016712,2]
[390544924,1760080244892,-500.0,0.00016712,2]
[390544926,1760080244901,-422.07411172,0.00016712,2]
[390544928,1760080244910,-500.0,0.00016712,2]
[390544930,1760080244919,-500.0,0.00016712,2]
[390544933,1760080244931,-501.1665511,0.00016712,2]
[390544935,1760080244941,-500.0,0.00016712,2]
[390544937,1760080244950,-500.86317803,0.00016712,2]
[390544939,1760080244959,-500.0,0.00016712,2]
[390544940,1760080244968,-834.28,0.00016712,2]
[390544942,1760080244977,-849.48,0.00016712,2]
[390544944,1760080244987,-500.0,0.00016712,2]
[390544947,1760080244996,-691.41,0.00016712,2]
[390544949,1760080245006,-500.0,0.00016712,2]
[390544950,1760080245015,-500.0,0.00016712,2]
[390544952,1760080245024,-500.0,0.00016712,2]
[390544955,1760080245034,-500.0,0.00016712,2]
[390544957,1760080245043,-1144.45,0.00016712,2]
[390544959,1760080245052,-500.0,0.00016712,2]
[390544960,1760080245061,-500.0,0.00016712,2]
[390544963,1760080245070,-500.0,0.00016712,2]
[390544964,1760080245079,-500.0,0.00016712,2]
[390544966,1760080245088,-500.0,0.00016712,2]
[390544968,1760080245097,-500.0,0.00016712,2]
[390544970,1760080245106,-500.0,0.00016712,2]
[390544972,1760080245116,-500.0,0.00016712,2]
[390544974,1760080245126,-500.0,0.00016712,2]
[390544976,1760080245136,-6633.61,0.00016712,2]
[390544978,1760080245145,-500.88673706,0.00016712,2]
[390544980,1760080245154,-500.0,0.00016712,2]
[390544982,1760080245163,-500.0,0.00016712,2]
[390544984,1760080245172,-500.0,0.00016712,2]
[390544987,1760080245186,-500.0,0.00016712,2]
[390544989,1760080245195,-500.0,0.00016712,2]
[390545005,1760080245341,-500.0,0.00016712,2]
[390545007,1760080245351,-500.0,0.00016712,2]
[390545009,1760080245360,-500.0,0.00016712,2]
[390545011,1760080245369,-500.0,0.00016712,2]
[390545013,1760080245378,-500.0,0.00016712,2]
[390545015,1760080245388,-501.44451044,0.00016712,2]
[390545017,1760080245397,-500.60334351,0.00016712,2]
[390545019,1760080245406,-500.0,0.00016712,2]
[390545021,1760080245415,-1166.12,0.00016712,2]
[390545023,1760080245424,-502.01975218,0.00016712,2]
[390545025,1760080245436,-500.0,0.00016712,2]
[390545027,1760080245445,-500.0,0.00016712,2]
[390545029,1760080245454,-500.0,0.00016712,2]
[390545031,1760080245464,-621.3,0.00016712,2]
[390545033,1760080245474,-500.0,0.00016712,2]
[390545035,1760080245486,-500.0,0.00016712,2]
[390545037,1760080245496,-1833.98,0.00016712,2]
[390545039,1760080245505,-500.0,0.00016712,2]
[390545041,1760080245514,-359.67318463,0.00016712,2]
[390545043,1760080245524,-1548.81,0.00016712,2]
[390545046,1760080245534,-500.0,0.00016712,2]
[390545049,1760080245543,-502.38203244,0.00016712,2]
[390545051,1760080245553,-500.0,0.00016712,2]
[390545053,1760080245564,-500.0,0.00016712,2]
[390545056,1760080245573,-500.0,0.00016712,2]
[390545059,1760080245582,-500.0,0.00016712,2]
[390545064,1760080245591,-500.0,0.00016712,2]
[390545067,1760080245600,-500.0,0.00016712,2]
[390545070,1760080245609,-500.0,0.00016712,2]
[390545073,1760080245619,-500.0,0.00016712,2]
[390545075,1760080245629,-500.0,0.00016712,2]
[390545076,1760080245638,-502.26101463,0.00016712,2]
[390545078,1760080245647,-500.0,0.00016712,2]
[390545080,1760080245656,-725.14,0.00016712,2]
[390545082,1760080245665,-500.0,0.00016712,2]
[390545083,1760080245674,-500.0,0.00016712,2]
[390545084,1760080245686,-222.46611655,0.00016712,2]
[390545085,1760080245696,-3197.74,0.00016712,2]
[390545086,1760080245705,-5152.53,0.00016712,2]
[390545087,1760080245714,-826.42,0.00016712,2]
[390545088,1760080245723,-500.0,0.00016712,2]
[390545089,1760080245733,-500.0,0.00016712,2]
[390545090,1760080245743,-1504.67,0.00016712,2]
[390545091,1760080245752,-4478.67,0.00016712,2]
[390545092,1760080245762,-500.0,0.00016712,2]
[390545093,1760080245771,-500.0,0.00016712,2]
[390545094,1760080245780,-500.0,0.00016712,2]
[390545095,1760080245789,-500.0,0.00016712,2]
[390545096,1760080245799,-500.0,0.00016712,2]
[390545097,1760080245808,-500.0,0.00016712,2]
[390545098,1760080245818,-500.0,0.00016712,2]
[390545099,1760080245827,-831.37,0.00016712,2]
[390545100,1760080245837,-500.0,0.00016712,2]
[390545101,1760080245848,-500.0,0.00016712,2]
[390545102,1760080245857,-755.85,0.00016712,2]
[390545103,1760080245866,-748.81,0.00016712,2]
[390545104,1760080245875,-500.0,0.00016712,2]
[390545105,1760080245884,-849.63,0.00016712,2]
[390545106,1760080245894,-2055.66,0.00016712,2]
[390545108,1760080245903,-824.93,0.00016712,2]
[390545110,1760080245912,-1540.61,0.00016712,2]
[390545112,1760080245923,-500.0,0.00016712,2]
[390545114,1760080245934,-500.0,0.00016712,2]
[390545116,1760080245945,-500.0,0.00016712,2]
[390545118,1760080245954,-544.75,0.00016712,2]
[390545120,1760080245963,-1049.77,0.00016712,2]
[390545122,1760080245973,-500.0,0.00016712,2]
[390545124,1760080245982,-500.0,0.00016712,2]
[390545126,1760080245990,-500.0,0.00016712,2]
[390545128,1760080246000,-500.0,0.00016712,2]
[390545130,1760080246009,-500.0,0.00016712,2]
[390545131,1760080246018,-500.0,0.00016712,2]
[390545134,1760080246028,-500.0,0.00016712,2]
[390545135,1760080246037,-1405.83,0.00016712,2]
[390545137,1760080246046,-500.0,0.00016712,2]
[390545139,1760080246055,-3146.69,0.00016712,2]
[390545141,1760080246064,-500.0,0.00016712,2]
[390545143,1760080246074,-500.0,0.00016712,2]
[390545145,1760080246083,-1222.66,0.00016712,2]
[390545147,1760080246093,-1001.84,0.00016712,2]
[390545149,1760080246101,-501.4714528,0.00016712,2]
[390545151,1760080246113,-335.48160139,0.00016712,2]
[390545153,1760080246122,-500.0,0.00016712,2]
[390545155,1760080246132,-500.0,0.00016712,2]
[390545157,1760080246140,-500.0,0.00016712,2]
[390545159,1760080246150,-500.0,0.00016712,2]
[390545161,1760080246159,-500.0,0.00016712,2]
[390545163,1760080246168,-1093.82,0.00016712,2]
[390545165,1760080246177,-741.44,0.00016712,2]
[390545167,1760080246187,-500.0,0.00016712,2]
[390545169,1760080246196,-500.0,0.00016712,2]
[390545171,1760080246205,-500.0,0.00016712,2]
[390545173,1760080246215,-500.0,0.00016712,2]
[390545175,1760080246224,-500.0,0.00016712,2]
[390545177,1760080246232,-722.92,0.00016712,2]
[390545179,1760080246242,-742.89,0.00016712,2]
[390545181,1760080246251,-620.65,0.00016712,2]
[390545183,1760080246261,-501.09182636,0.00016712,2]
[390545185,1760080246270,-838.24,0.00016712,2]
[390545187,1760080246279,-301.53012738,0.00016712,2]
[390545189,1760080246288,-500.0,0.00016712,2]
[390545191,1760080246297,-1177.09,0.00016712,2]
[390545193,1760080246305,-500.0,0.00016712,2]
[390545194,1760080246314,-3902.7,0.00016712,2]
[390545195,1760080246323,-500.0,0.00016712,2]
[390545196,1760080246332,-500.0,0.00016712,2]
[390545197,1760080246341,-663.03,0.00016712,2]
[390545198,1760080246350,-500.0,0.00016712,2]
[390545199,1760080246359,-500.0,0.00016712,2]
[390545200,1760080246368,-1065.11,0.00016712,2]
[390545201,1760080246378,-581.02,0.00016712,2]
[390545202,1760080246387,-300.0,0.00016712,2]
[390545203,1760080246396,-500.0,0.00016712,2]
[390545204,1760080246406,-500.0,0.00016712,2]
[390545205,1760080246415,-501.18658578,0.00016712,2]
[390545206,1760080246424,-500.0,0.00016712,2]
[390545207,1760080246434,-500.0,0.00016712,2]
[390545208,1760080246443,-2908.2,0.00016712,2]
[390545209,1760080246453,-500.67279678,0.00016712,2]
[390545211,1760080246462,-500.0,0.00016712,2]
[390545212,1760080246471,-500.0,0.00016712,2]
[390545213,1760080246481,-500.0,0.00016712,2]
[390545214,1760080246492,-500.0,0.00016712,2]
[390545215,1760080246501,-500.0,0.00016712,2]
[390545216,1760080246510,-500.0,0.00016712,2]
[390545217,1760080246518,-178.82930979,0.00016712,2]
[390545218,1760080246527,-4287.67,0.00016712,2]
[390545219,1760080246536,-500.0,0.00016712,2]
[390545220,1760080246545,-500.0,0.00016712,2]
[390545221,1760080246555,-500.0,0.00016712,2]
[390545222,1760080246566,-5159.42,0.00016712,2]
[390545223,1760080246575,-399.44342891,0.00016712,2]
[390545224,1760080246584,-500.0,0.00016712,2]
[390545225,1760080246593,-1082.4,0.00016712,2]
[390545226,1760080246602,-500.0,0.00016712,2]
[390545227,1760080246611,-500.0,0.00016712,2]
[390545228,1760080246619,-500.0,0.00016712,2]
[390545229,1760080246629,-500.0,0.00016712,2]
[390545230,1760080246638,-151.0,0.00016712,2]
[390545231,1760080246647,-500.0,0.00016712,2]
[390545232,1760080246656,-500.0,0.00016712,2]
[390545233,1760080246665,-1151.16,0.00016712,2]
[390545234,1760080246674,-500.0,0.00016712,2]
[390545235,1760080246683,-2087.21,0.00016712,2]
[390545236,1760080246692,-500.0,0.00016712,2]
[390545237,1760080246700,-500.0,0.00016712,2]
[390545238,1760080246710,-151.0,0.00016712,2]
[390545239,1760080246719,-500.0,0.00016712,2]
[390545240,1760080246728,-1236.4,0.00016712,2]
[390545241,1760080246737,-502.10397334,0.00016712,2]
[390545242,1760080246746,-151.0,0.00016712,2]
[390545243,1760080246756,-969.09,0.00016712,2]
[390545244,1760080246765,-761.97,0.00016712,2]
[390545245,1760080246774,-151.0,0.00016712,2]
[390545246,1760080246783,-749.82,0.00016712,2]